Cogmind - Beta 11 @@@ ROGUE MODE // 2022.03.20 @ 19:21:45 Player: Finestep Result: Destroyed by as-68242 with Assembled Rifle Performance ------------- Evolutions (0) 0 Regions Visited (2) 400 Robots Destroyed (12) 60 Value Destroyed (270) 270 Prototype IDs (0) 0 Alien Tech Used (0) 0 Bonus (0) 0 TOTAL SCORE: 730 Bonus ------- None Cogmind --------- Core Integrity 0/250 Matter 209/300 Energy 98/100 System Corruption 0% Temperature Cool (0) Movement Treading (160) Location -10/Mines Parts ------- > --- POWER (1) -------- (None) > --- PROPULSION (2) --- Light Treads Light Treads > --- UTILITY (2) ------ Large Storage Unit Weapon Shielding > --- WEAPON (2) ------- Light Assault Rifle > --- INVENTORY (15) --- Light Treads Armored Wheel Armored Wheel Armored Wheel Armored Wheel Combat Airjet Faulty Experimental Sensor Array Improved Targeting Computer Peak State ------------ > --- POWER ------------ Ion Engine > --- PROPULSION ------- Aluminum Leg Aluminum Leg > --- UTILITY ---------- Large Storage Unit Light Armor Plating > --- WEAPON ----------- Light Assault Rifle Shotgun > --- INVENTORY -------- Ion Engine Light Treads Light Treads Light Treads Armored Wheel Armored Wheel Armored Wheel Armored Wheel Experimental Sensor Array Improved Targeting Computer Weapon Shielding Light Armor Plating Light Assault Rifle Light Assault Rifle [Rating: 10] Favorites ----------- Power Ion Engine Engine Ion Engine Propulsion Aluminum Leg Treads Light Treads Leg Aluminum Leg Utility Large Storage Unit Device Seismic Detector Storage Large Storage Unit Protection Light Armor Plating Weapon Light Assault Rifle Ballistic Gun Light Assault Rifle Build | -11 -10 -10 ------- Run | Scr Mat Min Slots Evolved . | . . . Power . | . . . Propulsion . | . . . Utility . | . . . Weapon . | . . . Parts Attached 18 | 7 3 8 Power 2 | 1 . 1 Engine 2 | 1 . 1 Core . | . . . Reactor . | . . . Propulsion 5 | 2 1 2 Treads 2 | . . 2 Leg 3 | 2 1 . Wheel . | . . . Hover . | . . . Flight . | . . . Utility 6 | 2 2 2 Device 1 | 1 . . Storage 2 | 1 1 . Processor . | . . . Hackware . | . . . Protection 3 | . 1 2 Artifact . | . . . Weapon 5 | 2 . 3 Energy Gun . | . . . Energy Cannon . | . . . Ballistic Gun 5 | 2 . 3 Ballistic Cannon . | . . . Launcher . | . . . Special Weapon . | . . . Impact Weapon . | . . . Slashing Weapon . | . . . Piercing Weapon . | . . . Special Melee Weapon . | . . . Unidentified Prototypes . | . . . Parts Lost 10 | . . 10 Power 2 | . . 2 Propulsion 2 | . . 2 Utility 2 | . . 2 Weapon 4 | . . 4 Highest Loss Streak 10 | . . 10 To Critical Strikes . | . . . Average Slot Usage (%) 99 | . 100 97 Engine 13 | . 14 13 Leg 27 | . 28 26 Device 5 | . 9 . Storage 14 | . 14 14 Protection 8 | . 4 13 Ballistic Gun 27 | . 28 27 Naked Turns . | . . . Heaviest Build 30 | 13 30 30 Greatest Support 40 | 20 20 40 Greatest Overweight (x) 3 | 3 1 1 Average Overweight (x) . | . . . Largest Inventory Capacity 15 | 8 15 15 Average Capacity 13 | 7 12 15 Most Carried 15 | 6 15 15 Average Carried 12 | 4 11 14 Final Capacity 15 | 8 15 15 Final Carried 15 | 6 15 8 Class Distribution -------------------- 100% | Mutant Dominant Class ---------------- Mutant | -10/Materials Mutant | -10/Mines Resources | -11 -10 -10 ----------- Run | Scr Mat Min Matter Collected 382 | 245 123 14 Remotely . | . . . Salvage Created 328 | 20 212 96 Parts 28 | 3 16 9 Haulers Intercepted 1 | . 1 . Recyclers Shooed 1 | . 1 . Parts Field Recycled . | . . . Retrieved Matter . | . . . Parts Self-Destructed . | . . . Prevented . | . . . Kills | -11 -10 -10 ------- Run | Scr Mat Min Combat Hostiles Destroyed 9 | . 3 6 Guns 9 | . 3 6 Classes Destroyed 7 | 1 3 3 Tunneler 2 | 1 1 . Hauler 1 | . 1 . Watcher 1 | . 1 . Swarmer 3 | . . 3 Grunt 3 | . 3 . Demolisher 2 | . . 2 Assembled 1 | . . 1 Best Kill Streak 3 | 1 3 3 Combat Bots Only 3 | . 3 3 Max Kills in Single Turn 1 | 1 1 1 Gunslinging . | . . . Exploded . | . . . Melee . | . . . Uniques/NPCs Destroyed . | . . . Combat | -11 -10 -10 -------- Run | Scr Mat Min Damage Taken 1428 | . 263 1165 Core 261 | . 48 213 Absorbed by Shields . | . . . Redirected to Shielding 4 | . . 4 Core Remaining (%) 100 | 100 . . Volleys Fired 57 | 5 29 23 Largest 2 | 2 2 2 Hottest 43 | 40 40 43 Shots Fired 109 | 10 58 41 Gun 109 | 10 58 41 Cannon . | . . . Launcher . | . . . Special . | . . . Kinetic 109 | 10 58 41 Thermal . | . . . Explosive . | . . . Electromagnetic . | . . . Robot Hit Streak 9 | 3 9 9 Robot Miss Streak 4 | 3 3 4 Penetration Max . | . . . Secondary Targets 3 | . 1 2 Max Gunslinging Chain 1 | . 1 1 Shots Hit Robots 66 | 5 35 26 Core Hits 33 | 3 16 14 Critical Kills 1 | . . 1 Critical Parts Destroyed . | . . . Critical Strikes 1 | . . 1 Destroy 1 | . . 1 Melee Attacks . | . . . Impact . | . . . Slashing . | . . . Piercing . | . . . Sneak Attacks . | . . . Combat Hostiles . | . . . Follow-up Attacks . | . . . Damage Inflicted 644 | 48 295 301 Guns 644 | 48 295 301 Cannons . | . . . Explosions . | . . . Melee . | . . . Ramming . | . . . Kinetic 644 | 48 295 301 Thermal . | . . . Explosive . | . . . Electromagnetic . | . . . Impact . | . . . Slashing . | . . . Piercing . | . . . Highest Corruption . | . . . Average Corruption . | . . . Corruption Purged . | . . . Corruption Blocked . | . . . Overload Shots . | . . . Overflow Damage . | . . . Projectiles . | . . . Explosions . | . . . Melee . | . . . Knockbacks . | . . . Impact . | . . . Kinetic . | . . . Secondary . | . . . Self-Inflicted Damage . | . . . Shots . | . . . Rammed . | . . . Targets Rammed . | . . . Kicked . | . . . Crushed . | . . . Highest Temperature 36 | . 36 12 Average Temperature 9 | . 13 4 Received Heat Transfer 126 | . 120 6 Siege Activations . | . . . Robots Corrupted . | . . . Combat Hostiles . | . . . Parts Fried . | . . . Impact Corruptions . | . . . Robots Melted . | . . . Combat Hostiles . | . . . Parts Melted . | . . . Heat Transferred . | . . . Parts Sabotaged . | . . . Parts Stolen . | . . . Parts Stripped . | . . . Power Chain Reactions . | . . . Missiles Intercepted . | . . . Alert | -11 -10 -10 ------- Run | Scr Mat Min Peak Influence 138 | 5 138 80 Initial 3 | . 3 2 Average 26 | 1 28 27 Maximum Alert Level . | . . . Low Security (%) 100 | 100 100 100 Level 1 . | . . . Level 2 . | . . . Level 3 . | . . . Level 4 . | . . . Level 5 . | . . . High Security . | . . . Max Security . | . . . Squads Dispatched 1 | . 1 . Investigation 1 | . 1 . Extermination . | . . . Reinforcement . | . . . Assault . | . . . Garrison . | . . . Intercept . | . . . Searches Triggered . | . . . Construction Impeded . | . . . Haulers Reinforced . | . . . Active Scanning Responses . | . . . Cargo Convoy Interrupts . | . . . Stealth | -11 -10 -10 --------- Run | Scr Mat Min Distress Signals 1 | . 1 . Communications Jammed . | . . . Distress Signals . | . . . Times Spotted 25 | . 7 18 Peak Tracking Total 7 | . 3 7 Tactical Retreats . | . . . Traps | -11 -10 -10 ------- Run | Scr Mat Min Traps Triggered 1 | . 1 . Indirectly . | . . . Trap Hack Attempts . | . . . Triggered . | . . . Disarmed . | . . . Reprogrammed . | . . . Reused . | . . . Traps Extracted . | . . . Installed . | . . . Triggered . | . . . Machines | -11 -10 -10 ---------- Run | Scr Mat Min Machines Disabled . | . . . Max in Single Turn . | . . . Machines Sabotaged . | . . . Garrisons Compromised . | . . . Overloaded Fab Kills . | . . . Hacking | -11 -10 -10 --------- Run | Scr Mat Min Machines Accessed 5 | . 4 1 Terminals 4 | . 3 1 Fabricators . | . . . Repair Stations . | . . . Recycling Units 1 | . 1 . Scanalyzers . | . . . Garrison Access . | . . . Total Hacks 15 | . 14 1 Successful 10 | . 9 1 Failed 5 | . 5 . Catastrophic . | . . . Database Lockouts . | . . . Manual 10 | . 8 2 Terminals 12 | . 11 1 Fabricators . | . . . Repair Stations . | . . . Recycling Units 3 | . 3 . Scanalyzers . | . . . Garrison Access . | . . . Terminal Hacks 5 | . 5 . Part Schematic 2 | . 2 . Registered Components 1 | . 1 . Zone Layout 2 | . 2 . Fabricator Hacks . | . . . Repair Station Hacks . | . . . Recycling Unit Hacks 1 | . 1 . Retrieve Components 1 | . 1 . Scanalyzer . | . . . Garrison Access Hacks . | . . . Unauthorized Hacks 4 | . 3 1 Terminals 3 | . 2 1 Track 1 | . 1 . Botnet 2 | . 1 1 Fabricators . | . . . Repair Stations . | . . . Recycling Units 1 | . 1 . Tunnel 1 | . 1 . Scanalyzers . | . . . Garrison Access . | . . . Data Cores Recovered . | . . . Used . | . . . Hacking Detections 4 | . 3 1 Full Trace Events . | . . . Feedback Events . | . . . Feedback Blocked . | . . . Robot Schematics Acquired . | . . . Robots Built . | . . . Authchips . | . . . Time . | . . . Total Robot Build Rating . | . . . Part Schematics Acquired 2 | . 2 . Parts Built . | . . . Authchips . | . . . Time . | . . . Total Part Build Rating . | . . . Parts Repaired . | . . . Time . | . . . Parts Recycled . | . . . Recycled Matter . | . . . Retrieved Matter . | . . . Retrieved Components 9 | . 9 . Parts Scanalyzed . | . . . Part Schematics Acquired . | . . . Parts Damaged . | . . . Bothacking | -11 -10 -10 ------------ Run | Scr Mat Min Used RIF Installer . | . . . Robots Hacked . | . . . Non-combat . | . . . Combat . | . . . Robot Hacks Applied . | . . . Relay Couplers Released . | . . . Fabnet Peak Effective % . | . . . Robots Rewired . | . . . Allies Hacked . | . . . Hacks Repelled . | . . . Allies | -11 -10 -10 -------- Run | Scr Mat Min Total Allies 2 | . . 2 Largest Group 2 | . . 2 Highest-Rated Group 39 | . . 39 Highest-Rated Ally 31 | . . 31 Total Orders . | . . . Ally Attacks 6 | . . 6 Total Damage 83 | . . 83 Kills 2 | . . 2 Allies Corrupted . | . . . Allies Melted 1 | . . 1 Intel | -11 -10 -10 ------- Run | Scr Mat Min Robot Analysis Total . | . . . Derelict Logs Recovered 1 | . . 1 Drone Launches . | . . . Drone Recoveries . | . . . Exploration | -11 -10 -10 ------------- Run | Scr Mat Min Turns Passed 1295 | 97 709 489 Spaces Moved 648 | 54 374 220 Core 16 | 16 . . Treads 1 | . . 1 Legs 631 | 38 374 219 Wheels . | . . . Hover . | . . . Flight . | . . . Fastest Speed 50 | 50 120 160 Average Speed 168 | 126 162 189 Slowest Speed 200 | 200 190 190 Overloaded Moves . | . . . Propulsion Burnouts . | . . . Robots Hopped . | . . . Cave-ins Triggered . | . . . Exploration Rate (%) 36 | 4 52 53 Regions Visited 2 Branch Regions 1 Pre-discovered Areas 1 | . 1 . Known Exits Taken . | . . . Unknown Exits Taken 2 | 1 1 . Scrap Searched 1 | . . 1 Spaces Dug . | . . . Terrain Destroyed . | . . . Melee . | . . . Projectile . | . . . AOE . | . . . Terrain Rammed . | . . . Walls Destroyed . | . . . Machines Disabled . | . . . Actions | -11 -10 -10 --------- Run | Scr Mat Min Total 762 | 71 433 258 Wait 5 | . 5 . Move 646 | 53 373 220 Hop . | . . . Pick Up 25 | 6 15 4 Fast Attach 7 | 7 . . Attach 9 | . 1 8 Detach . | . . . Swap 2 | . 2 . Drop 11 | . 8 3 Fire 57 | 5 29 23 Melee . | . . . Ram . | . . . Kick . | . . . Crush . | . . . Escape Stasis . | . . . Rewire . | . . . Trap . | . . . Miscellaneous . | . . . Route ------- -11/Scrapyard -10/Materials (discovered 2 exits: [*Mat] / *Min) -10/Mines (discovered 1 exit: [*Mat]) History --------- Turn | Location | Event 11 | -11/Scrapyard | Discovered new exit (range 15) 98 | -11/Scrapyard | Entered Materials 183 | -10/Materials | Met 8R-AWN 275 | -10/Materials | Discovered new exit (range 10) 332 | -10/Materials | Build established: Mutant 582 | -10/Materials | Discovered new exit (range 16) 807 | -10/Materials | Entered Mines 810 | -10/Mines | Followed 8R-AWN into the Mines 825 | -10/Mines | Learned Materials emergency access door positions 1045 | -10/Mines | Discovered new exit (range 8) 1204 | -10/Mines | Assembled infested the area 1216 | -10/Mines | Found a damaged Exp. Sensor Array with a note attached 1221 | -10/Mines | Found Prototype Device 1269 | -10/Mines | Core integrity fell below 50% 1279 | -10/Mines | Core integrity fell below 20% 1296 | -10/Mines | Destroyed by as-68242 with Assembled Rifle Last Messages --------------- 01252_ D-53 Grenadier suffers critical hit (Destroy). 01252_ D-53 Grenadier destroyed. 01252_ Switching to secondary target: D-53 Grenadier. 01254_ Ion Engine destroyed. 01254_ as-32258 destroyed. 01257_ Aluminum Leg destroyed. 01257_ D-53 Grenadier knocked back. 01258_ Lgt. Assault Rifle destroyed. 01258_ as-08205 destroyed. 01261_ The unstable cave ceiling collapses. 01265_ Aluminum Leg destroyed. 01269_ Lgt. Assault Rifle destroyed. 01270_ D-53 Grenadier destroyed. 01273_ Acquired Cmb. Airjet. 01279_ Destroyed Asb. Hover Unit. 01280_ Lgt. Armor Plating destroyed. 01282_ as-40318 destroyed. 01282_ Switching to secondary target: as-14613. 01288_ Ion Engine destroyed. 01289_ Shotgun destroyed. Map ----- +----------------------------------------------------+ | ???????# ## #?????????# #????# #? | | ???????# #?????????# #????# |%=## | | ???????# #?????????# #????# = ! " | | ???????# ##????????#%#????# %[ " | | ???????## ###??????#!#????? ! " | | ????????# ##?????# #?????? [ " | | ????????# ##????# #???????# %"?"" | | ????????## ###### #???????# =##"#? | | ?????????# ## #??????## ##? | | ?????????# #### ########??????# ## | | ?????????# #??#####?????????????# | | ?????????# #????????????????????#% | | ?????????# #??????#####?????????# ### | | ?????????# ######## ##???????##% ##?## | | ?????????# #??????## #???# | | ?????????# ######## #???? | | ?????????######### #???? | | ?????????????????## ##???? | | ??????????????????## ####### ####????? | | ?????????????????###r #?????# ###???????? | | ??????????????#### #???### #?????????? | | ?????????????## %r #??## ##????????# | | ?????????????# ##??# #????????? | | ?????????????# ##?# #????????? | | ?????????????# ## #????????? | | ?????????????# @% # ????????? | | ?????????????# aa # ???????? | | ???????????#### # ### ??????? | | ???????????# a ## ##??? ??????? | | ???????????# ######?????# ?????? | | ???###?????# ## #??????????# ????? | | ??## ##???# #### #???????????# ???? | | ??# ##### #??## ##????????????# ???? | | ??# ## #???## ##??????????????##??? | | ??# % #????#a#???????????????????? | | ???# ###### ########????????????? | | ???## #???????????? | | ????## % [ % #????????? | | ?????# %% ####### #???????? | | ?????## #### ##?????????? ???????? | | ??????# ##??## ##??????????????????????? | | ??????# #????#####???????????????????????? | | ??????# #????????????????????????????????? | | ??????# ????????????????????????????????? | | ??????###????????????????????????????????? | | ?????????????????????????????????????????? | | ?????????????????????????????????????????? | | ?????????????????????????????????????????? | | ?????????????????????????????????????????? | | ?????????????????????????????????????????? | +----------------------------------------------------+ Best States ------------- Heat Dissipation 25 Energy Generation 10 Energy Capacity 250 Matter Stores 300 Matter Capacity 300 Sight Range 16 Terrain Scan Density 10 Armor Coverage 150 Evasion (%) 55 Recoil Reduction 2 Item Schematics ----------------- Huge Storage Unit | -10/Materials | Hacked Hcp. Storage Unit | -10/Materials | Hacked Robot Schematics ------------------ None Fabricated ------------ Nothing Alien Tech Used ----------------- None Achievements -------------- None Challenges ------------ None Game ------ Seed SigixSupersonicHumpback Manual? 0 Play Time 00:08:41 Cumulative 549.0 hours Start 2022.03.20 @ 19:15:32 End 2022.03.20 @ 19:21:45 Sessions 1 Manual Loads 0 Difficulty Rogue Special Mode None Game No. 349 Rogue 349 Adventurer 0 Explorer 0 Win Type - Total 6 Types 4/0/1/0/1/0/0/0/0 Lore% 82 Gallery% 82 Achievement% 73 Wizard Run 0 Options --------- ASCII 0 Keyboard 0 Movement Mouse Keybinds 1 Fullscreen 2 Font 24/Smallcaps Map View 68x50 Tactical HUD 1 Map Filters NONE Filters NONE Steam 1 RUN: a744bcdc-49d7-488a-853f-966392558576